[Event "Snabb-SM för veteraner, 65+ 2019"]
[Site "Schackcentrum, Vegagatan 20, Gothenburg, Sweden"]
[Date "2019.10.05"]
[Round "3.3"]
[White "Herrman, Jan"]
[Black "Andersson, Kaj"]
[Result "0-1"]
[TimeControl "15 minutes + 10 seconds per move from move one"]
[WhiteFideId "1731882"]
[BlackFideId "1709860"]
[WhiteElo "1929"]
[BlackElo "2083"]

1. d4 {[%clk 00:15:16]} {[%emt 00:00:03]} d5 {[%clk 00:15:19]} {[%emt
00:00:02]} 2. Nf3 {[%clk 00:15:22]} {[%emt 00:00:05]} Nf6 {[%clk 00:15:28]}
{[%emt 00:00:01]} 3. Bf4 {[%clk 00:15:22]} {[%emt 00:00:09]} e6 {[%clk
00:15:36]} {[%emt 00:00:02]} 4. e3 {[%clk 00:15:22]} {[%emt 00:00:10]} Bd6
{[%clk 00:15:44]} {[%emt 00:00:02]} 5. Bxd6 {[%clk 00:14:45]} {[%emt 00:00:47]}
Qxd6 {[%clk 00:15:52]} {[%emt 00:00:02]} 6. Nbd2 {[%clk 00:14:22]} {[%emt
00:00:33]} O-O {[%clk 00:15:55]} {[%emt 00:00:07]} 7. c4 {[%clk 00:14:23]}
{[%emt 00:00:09]} Nbd7 {[%clk 00:15:16]} {[%emt 00:00:49]} 8. Bd3 {[%clk
00:14:01]} {[%emt 00:00:31]} h6 {[%clk 00:15:12]} {[%emt 00:00:14]} 9. O-O
{[%clk 00:14:07]} {[%emt 00:00:05]} a6 {[%clk 00:15:19]} {[%emt 00:00:03]} 10.
Rc1 {[%clk 00:14:02]} {[%emt 00:00:15]} c6 {[%clk 00:15:17]} {[%emt 00:00:13]}
11. Qc2 {[%clk 00:11:45]} {[%emt 00:02:27]} Re8 {[%clk 00:15:05]} {[%emt
00:00:22]} 12. Rfe1 {[%clk 00:11:09]} {[%emt 00:00:46]} e5 {[%clk 00:14:27]}
{[%emt 00:00:48]} 13. dxe5 {[%clk 00:11:01]} {[%emt 00:00:18]} Nxe5 {[%clk
00:14:34]} {[%emt 00:00:03]} 14. Nxe5 {[%clk 00:11:09]} {[%emt 00:00:01]} Qxe5
{[%clk 00:14:06]} {[%emt 00:00:37]} 15. Nf3 {[%clk 00:10:59]} {[%emt 00:00:21]}
Qh5 {[%clk 00:13:56]} {[%emt 00:00:20]} 16. Be2 {[%clk 00:08:37]} {[%emt
00:02:33]} Bf5 {[%clk 00:13:49]} {[%emt 00:00:17]} 17. Nd4 {[%clk 00:07:16]}
{[%emt 00:01:32]} Bxc2 {[%clk 00:13:44]} {[%emt 00:00:15]} 18. Bxh5 {[%clk
00:07:23]} {[%emt 00:00:03]} Bd3 {[%clk 00:12:51]} {[%emt 00:01:02]} 19. Be2
{[%clk 00:07:32]} {[%emt 00:00:02]} dxc4 {[%clk 00:12:53]} {[%emt 00:00:08]} 20.
Bxd3 {[%clk 00:07:29]} {[%emt 00:00:13]} cxd3 {[%clk 00:13:01]} {[%emt
00:00:02]} 21. Red1 {[%clk 00:07:24]} {[%emt 00:00:15]} Rad8 {[%clk 00:11:34]}
{[%emt 00:01:36]} 22. Rxd3 {[%clk 00:07:17]} {[%emt 00:00:18]} Re5 {[%clk
00:11:13]} {[%emt 00:00:32]} 23. Rb3 {[%clk 00:07:10]} {[%emt 00:00:16]} Rd7
{[%clk 00:10:12]} {[%emt 00:01:11]} 24. h3 {[%clk 00:06:23]} {[%emt 00:00:57]}
Red5 {[%clk 00:10:12]} {[%emt 00:00:10]} 25. Rbc3 {[%clk 00:05:10]} {[%emt
00:01:24]} Ne4 {[%clk 00:10:14]} {[%emt 00:00:07]} 26. R3c2 {[%clk 00:04:59]}
{[%emt 00:00:21]} Kf8 {[%clk 00:09:27]} {[%emt 00:00:57]} 27. f3 {[%clk
00:03:14]} {[%emt 00:01:55]} Nf6 {[%clk 00:09:11]} {[%emt 00:00:26]} 28. Kf2
{[%clk 00:03:18]} {[%emt 00:00:06]} g6 {[%clk 00:08:40]} {[%emt 00:00:41]} 29.
Nb3 {[%clk 00:02:53]} {[%emt 00:00:36]} h5 {[%clk 00:07:29]} {[%emt 00:01:21]}
30. e4 {[%clk 00:02:59]} {[%emt 00:00:04]} Re5 {[%clk 00:06:26]} {[%emt
00:01:13]} 31. Nc5 {[%clk 00:02:34]} {[%emt 00:00:35]} Rc7 {[%clk 00:06:15]}
{[%emt 00:00:21]} 32. Rd2 {[%clk 00:01:55]} {[%emt 00:00:48]} Ree7 {[%clk
00:06:05]} {[%emt 00:00:19]} 33. Rcd1 {[%clk 00:01:43]} {[%emt 00:00:23]} Kg7
{[%clk 00:05:48]} {[%emt 00:00:27]} 34. Rd6 {[%clk 00:01:29]} {[%emt 00:00:24]}
Re5 {[%clk 00:05:23]} {[%emt 00:00:35]} 35. Nb3 {[%clk 00:01:10]} {[%emt
00:00:29]} g5 {[%clk 00:05:06]} {[%emt 00:00:27]} 36. Nc1 {[%clk 00:00:47]}
{[%emt 00:00:33]} Rc5 {[%clk 00:04:44]} {[%emt 00:00:31]} 37. Nb3 {[%clk
00:00:43]} {[%emt 00:00:15]} Rc2+ {[%clk 00:04:27]} {[%emt 00:00:27]} 38. R6d2
{[%clk 00:00:52]} {[%emt 00:00:01]} Rxd2+ {[%clk 00:04:35]} {[%emt 00:00:03]}
39. Rxd2 {[%clk 00:01:01]} Nd7 {[%clk 00:04:31]} {[%emt 00:00:14]} 40. Ke3
{[%clk 00:01:06]} {[%emt 00:00:04]} Kf6 {[%clk 00:04:38]} {[%emt 00:00:03]} 41.
g3 {[%clk 00:01:04]} {[%emt 00:00:12]} Ne5 {[%clk 00:04:46]} {[%emt 00:00:01]}
42. Rd6+ {[%clk 00:00:30]} {[%emt 00:00:44]} Kg7 {[%clk 00:04:40]} {[%emt
00:00:16]} 43. Nd2 {[%clk 00:00:33]} {[%emt 00:00:07]} b5 {[%clk 00:04:14]}
{[%emt 00:00:36]} 44. f4 {[%clk 00:00:40]} {[%emt 00:00:03]} gxf4+ {[%clk
00:04:15]} {[%emt 00:00:09]} 45. gxf4 {[%clk 00:00:49]} {[%emt 00:00:02]} Ng6
{[%clk 00:04:14]} {[%emt 00:00:11]} 46. Nb3 {[%clk 00:00:42]} {[%emt 00:00:17]}
Ne7 {[%clk 00:04:07]} {[%emt 00:00:17]} 47. Nc5 {[%clk 00:00:38]} {[%emt
00:00:14]} a5 {[%clk 00:04:13]} {[%emt 00:00:04]} 48. f5 {[%clk 00:00:40]}
{[%emt 00:00:09]} Nc8 {[%clk 00:03:51]} {[%emt 00:00:32]} 49. Rd7 {[%clk
00:00:38]} {[%emt 00:00:12]} Rxd7 {[%clk 00:03:41]} {[%emt 00:00:20]} 50. Nxd7
{[%clk 00:00:48]} {[%emt 00:00:01]} Nd6 {[%clk 00:03:49]} 51. b3 {[%clk
00:00:46]} {[%emt 00:00:11]} Kh6 {[%clk 00:03:34]} {[%emt 00:00:25]} 52. Kf4
{[%clk 00:00:55]} {[%emt 00:00:01]} Kg7 {[%clk 00:03:36]} {[%emt 00:00:09]} 53.
e5 {[%clk 00:00:53]} {[%emt 00:00:12]} Ne8 {[%clk 00:03:36]} {[%emt 00:00:09]}
54. Kg5 {[%clk 00:00:54]} {[%emt 00:00:09]} Nc7 {[%clk 00:03:36]} {[%emt
00:00:10]} 55. Kxh5 {[%clk 00:00:53]} {[%emt 00:00:10]} Nd5 {[%clk 00:03:45]}
{[%emt 00:00:03]} 56. Kg5 {[%clk 00:00:54]} {[%emt 00:00:07]} Nc3 {[%clk
00:03:52]} {[%emt 00:00:04]} 57. h4 {[%clk 00:00:49]} {[%emt 00:00:15]} Nxa2
{[%clk 00:03:48]} {[%emt 00:00:14]} 58. h5 {[%clk 00:00:58]} {[%emt 00:00:01]}
Nc3 {[%clk 00:03:55]} {[%emt 00:00:03]} 59. h6+ {[%clk 00:01:01]} {[%emt
00:00:08]} Kh7 {[%clk 00:03:44]} {[%emt 00:00:20]} 60. Nf8+ {[%clk 00:01:01]}
{[%emt 00:00:10]} Kh8 {[%clk 00:03:35]} {[%emt 00:00:18]} 61. Kf6 {[%clk
00:01:10]} {[%emt 00:00:01]} a4 {[%clk 00:03:43]} {[%emt 00:00:02]} 62. bxa4
{[%clk 00:01:12]} {[%emt 00:00:08]} bxa4 {[%clk 00:03:52]} {[%emt 00:00:01]} 63.
e6 {[%clk 00:01:20]} {[%emt 00:00:02]} fxe6 {[%clk 00:03:58]} {[%emt 00:00:04]}
64. fxe6 {[%clk 00:01:28]} {[%emt 00:00:02]} a3 {[%clk 00:04:01]} {[%emt
00:00:07]} 65. Ng6+ {[%clk 00:01:33]} {[%emt 00:00:05]} Kh7 {[%clk 00:04:03]}
{[%emt 00:00:08]} 66. e7 {[%clk 00:01:42]} {[%emt 00:00:01]} Nd5+ {[%clk
00:04:11]} {[%emt 00:00:02]} 67. Ke5 {[%clk 00:01:47]} {[%emt 00:00:03]} Nxe7
{[%clk 00:04:06]} {[%emt 00:00:17]} 0-1

[Event "Snabb-SM för veteraner, 65+ 2019"]
[Site "Schackcentrum, Vegagatan 20, Gothenburg, Sweden"]
[Date "2019.10.05"]
[Round "3.4"]
[White "Bohlin, Jan"]
[Black "Landin, Bo"]
[Result "1/2-1/2"]
[TimeControl "15 minutes + 10 seconds per move from move one"]
[WhiteFideId "1758616"]
[BlackFideId "1705261"]
[WhiteElo "1794"]
[BlackElo "1959"]

1. c4 {[%clk 00:15:17]} {[%emt 00:00:02]} e6 {[%clk 00:15:19]} {[%emt
00:00:02]} 2. Nc3 {[%clk 00:15:25]} {[%emt 00:00:02]} d5 {[%clk 00:15:27]}
{[%emt 00:00:02]} 3. d4 {[%clk 00:15:12]} {[%emt 00:00:23]} Nf6 {[%clk
00:15:33]} {[%emt 00:00:04]} 4. cxd5 {[%clk 00:15:18]} {[%emt 00:00:04]} exd5
{[%clk 00:15:39]} {[%emt 00:00:04]} 5. Bg5 {[%clk 00:15:27]} {[%emt 00:00:01]}
Nbd7 {[%clk 00:15:37]} {[%emt 00:00:12]} 6. e3 {[%clk 00:15:29]} {[%emt
00:00:08]} c6 {[%clk 00:15:45]} {[%emt 00:00:02]} 7. Bd3 {[%clk 00:15:37]}
{[%emt 00:00:02]} Bd6 {[%clk 00:15:52]} {[%emt 00:00:03]} 8. Qc2 {[%clk
00:15:18]} {[%emt 00:00:29]} O-O {[%clk 00:15:55]} {[%emt 00:00:08]} 9. Bxh7+
{[%clk 00:15:15]} {[%emt 00:00:13]} Kh8 {[%clk 00:16:04]} {[%emt 00:00:01]} 10.
Bf5 {[%clk 00:14:48]} {[%emt 00:00:37]} Qc7 {[%clk 00:15:38]} {[%emt 00:00:36]}
11. Nf3 {[%clk 00:14:33]} {[%emt 00:00:25]} b5 {[%clk 00:14:41]} {[%emt
00:01:07]} 12. a3 {[%clk 00:14:08]} {[%emt 00:00:35]} a5 {[%clk 00:13:32]}
{[%emt 00:01:19]} 13. O-O {[%clk 00:14:09]} {[%emt 00:00:08]} g6 {[%clk
00:12:05]} {[%emt 00:01:37]} 14. Bd3 {[%clk 00:14:07]} {[%emt 00:00:12]} Nh7
{[%clk 00:10:39]} {[%emt 00:01:36]} 15. Bh4 {[%clk 00:13:58]} {[%emt 00:00:19]}
Ndf6 {[%clk 00:10:26]} {[%emt 00:00:23]} 16. Rac1 {[%clk 00:11:44]} {[%emt
00:02:24]} Qb8 {[%clk 00:08:24]} {[%emt 00:02:12]} 17. Rfe1 {[%clk 00:11:02]}
{[%emt 00:00:51]} Bg4 {[%clk 00:08:16]} {[%emt 00:00:18]} 18. Bg3 {[%clk
00:09:50]} {[%emt 00:01:23]} Bxf3 {[%clk 00:07:08]} {[%emt 00:01:18]} 19. gxf3
{[%clk 00:09:58]} {[%emt 00:00:02]} Ng5 {[%clk 00:05:52]} {[%emt 00:01:26]} 20.
Kg2 {[%clk 00:09:48]} {[%emt 00:00:19]} b4 {[%clk 00:05:30]} {[%emt 00:00:33]}
21. axb4 {[%clk 00:09:24]} {[%emt 00:00:35]} axb4 {[%clk 00:04:29]} {[%emt
00:01:11]} 22. Ne2 {[%clk 00:09:24]} {[%emt 00:00:10]} Bxg3 {[%clk 00:02:16]}
{[%emt 00:02:23]} 23. fxg3 {[%clk 00:09:25]} {[%emt 00:00:09]} Qc8 {[%clk
00:02:17]} {[%emt 00:00:09]} 24. Rh1 {[%clk 00:07:07]} {[%emt 00:02:27]} Qh3+
{[%clk 00:01:45]} {[%emt 00:00:43]} 25. Kf2 {[%clk 00:07:16]} Qh5 {[%clk
00:01:30]} {[%emt 00:00:26]} 26. Ng1 {[%clk 00:06:44]} {[%emt 00:00:41]} Rac8
{[%clk 00:00:43]} {[%emt 00:00:58]} 27. Kg2 {[%clk 00:06:18]} {[%emt 00:00:37]}
Rfe8 {[%clk 00:00:43]} {[%emt 00:00:10]} 28. h4 {[%clk 00:05:56]} {[%emt
00:00:31]} Ne6 {[%clk 00:00:33]} {[%emt 00:00:20]} 29. Ne2 {[%clk 00:05:10]}
{[%emt 00:00:56]} c5 {[%clk 00:00:33]} {[%emt 00:00:10]} 30. dxc5 {[%clk
00:05:06]} {[%emt 00:00:15]} Rxc5 {[%clk 00:00:40]} {[%emt 00:00:03]} 31. Qd2
{[%clk 00:05:12]} {[%emt 00:00:03]} Qe5 {[%clk 00:00:36]} {[%emt 00:00:14]} 32.
f4 {[%clk 00:04:30]} {[%emt 00:00:53]} Qd6 {[%clk 00:00:38]} {[%emt 00:00:07]}
33. Rxc5 {[%clk 00:03:59]} {[%emt 00:00:41]} Nxc5 {[%clk 00:00:47]} {[%emt
00:00:02]} 34. Nd4 {[%clk 00:03:44]} {[%emt 00:00:26]} Nxd3 {[%clk 00:00:48]}
{[%emt 00:00:09]} 35. Qxd3 {[%clk 00:03:52]} Ng4 {[%clk 00:00:56]} {[%emt
00:00:02]} 36. Re1 {[%clk 00:01:18]} {[%emt 00:02:44]} Re4 {[%clk 00:00:50]}
{[%emt 00:00:16]} 37. Nf3 {[%clk 00:01:15]} {[%emt 00:00:13]} f6 {[%clk
00:00:38]} {[%emt 00:00:22]} 38. Nh2 {[%clk 00:00:55]} {[%emt 00:00:30]} Nh6
{[%clk 00:00:35]} {[%emt 00:00:13]} 39. Rc1 {[%clk 00:00:37]} {[%emt 00:00:28]}
Nf5 {[%clk 00:00:32]} {[%emt 00:00:13]} 40. Nf1 {[%clk 00:00:45]} {[%emt
00:00:02]} Qd7 {[%clk 00:00:34]} {[%emt 00:00:08]} 41. Rd1 {[%clk 00:00:35]}
{[%emt 00:00:19]} Qe6 {[%clk 00:00:31]} {[%emt 00:00:13]} 42. Qxd5 {[%clk
00:00:38]} {[%emt 00:00:07]} Qxd5 {[%clk 00:00:37]} {[%emt 00:00:05]} 43. Rxd5
{[%clk 00:00:47]} {[%emt 00:00:01]} Nxe3+ {[%clk 00:00:35]} {[%emt 00:00:12]}
44. Nxe3 {[%clk 00:00:51]} {[%emt 00:00:05]} Rxe3 {[%clk 00:00:44]} 45. Kf2
{[%clk 00:00:50]} {[%emt 00:00:09]} Rb3 {[%clk 00:00:52]} {[%emt 00:00:05]} 46.
Rd2 {[%clk 00:00:54]} {[%emt 00:00:07]} Kg7 {[%clk 00:01:00]} {[%emt 00:00:02]}
47. g4 {[%clk 00:00:52]} {[%emt 00:00:11]} Kh6 {[%clk 00:01:05]} {[%emt
00:00:05]} 48. g5+ {[%clk 00:00:45]} {[%emt 00:00:17]} fxg5 {[%clk 00:01:11]}
{[%emt 00:00:04]} 49. hxg5+ {[%clk 00:00:50]} {[%emt 00:00:05]} Kh5 {[%clk
00:01:14]} {[%emt 00:00:07]} 50. Ke1 {[%clk 00:00:47]} {[%emt 00:00:13]} Kg4
{[%clk 00:01:22]} {[%emt 00:00:03]} 51. Rf2 {[%clk 00:00:52]} {[%emt 00:00:05]}
Kf5 {[%clk 00:01:27]} {[%emt 00:00:05]} 52. Kd1 {[%clk 00:00:58]} {[%emt
00:00:04]} Re3 {[%clk 00:01:32]} {[%emt 00:00:06]} 53. Kd2 {[%clk 00:00:55]}
{[%emt 00:00:13]} Rb3 {[%clk 00:01:36]} {[%emt 00:00:06]} 54. Kc2 {[%clk
00:01:03]} {[%emt 00:00:02]} Re3 {[%clk 00:01:44]} {[%emt 00:00:01]} 55. Kd2
{[%clk 00:01:12]} {[%emt 00:00:01]} Rb3 {[%clk 00:01:53]} 1/2-1/2

[Event "Snabb-SM för veteraner, 65+ 2019"]
[Site "Schackcentrum, Vegagatan 20, Gothenburg, Sweden"]
[Date "2019.10.05"]
[Round "3.5"]
[White "Green, Per"]
[Black "Alfven, Jorgen"]
[Result "1-0"]
[TimeControl "15 minutes + 10 seconds per move from move one"]
[WhiteFideId "1703811"]
[BlackFideId "1715950"]
[WhiteElo "1923"]
[BlackElo "1791"]

1. Nf3 {[%clk 00:15:11]} {[%emt 00:00:07]} Nf6 {[%clk 00:15:15]} {[%emt
00:00:06]} 2. c4 {[%clk 00:15:20]} {[%emt 00:00:01]} e6 {[%clk 00:15:20]}
{[%emt 00:00:05]} 3. g3 {[%clk 00:15:16]} {[%emt 00:00:14]} d5 {[%clk
00:15:15]} {[%emt 00:00:15]} 4. Bg2 {[%clk 00:15:24]} {[%emt 00:00:02]} c6
{[%clk 00:15:19]} {[%emt 00:00:06]} 5. O-O {[%clk 00:15:23]} {[%emt 00:00:11]}
Bd6 {[%clk 00:14:38]} {[%emt 00:00:51]} 6. b3 {[%clk 00:15:22]} {[%emt
00:00:12]} O-O {[%clk 00:14:43]} {[%emt 00:00:05]} 7. Bb2 {[%clk 00:15:25]}
{[%emt 00:00:06]} Nbd7 {[%clk 00:14:47]} {[%emt 00:00:06]} 8. Nc3 {[%clk
00:15:08]} {[%emt 00:00:28]} a6 {[%clk 00:14:43]} {[%emt 00:00:14]} 9. Qc2
{[%clk 00:15:06]} {[%emt 00:00:11]} Qe7 {[%clk 00:14:22]} {[%emt 00:00:32]} 10.
Rac1 {[%clk 00:13:19]} {[%emt 00:01:57]} b5 {[%clk 00:14:10]} {[%emt 00:00:21]}
11. cxd5 {[%clk 00:12:25]} {[%emt 00:01:04]} cxd5 {[%clk 00:14:05]} {[%emt
00:00:16]} 12. d3 {[%clk 00:10:44]} {[%emt 00:01:50]} Bb7 {[%clk 00:14:07]}
{[%emt 00:00:08]} 13. Nd4 {[%clk 00:10:18]} {[%emt 00:00:37]} Rac8 {[%clk
00:13:54]} {[%emt 00:00:22]} 14. Qd2 {[%clk 00:10:01]} {[%emt 00:00:26]} h6
{[%clk 00:13:09]} {[%emt 00:00:55]} 15. e3 {[%clk 00:09:47]} {[%emt 00:00:24]}
Ne5 {[%clk 00:12:35]} {[%emt 00:00:44]} 16. f4 {[%clk 00:09:29]} {[%emt
00:00:28]} Nc6 {[%clk 00:12:13]} {[%emt 00:00:33]} 17. Nf3 {[%clk 00:08:49]}
{[%emt 00:00:50]} Bb4 {[%clk 00:11:57]} {[%emt 00:00:25]} 18. Qe2 {[%clk
00:08:36]} {[%emt 00:00:23]} Rfd8 {[%clk 00:11:48]} {[%emt 00:00:19]} 19. Nb1
{[%clk 00:07:56]} {[%emt 00:00:51]} Ba5 {[%clk 00:10:58]} {[%emt 00:01:00]} 20.
Kh1 {[%clk 00:06:49]} {[%emt 00:01:16]} Bb6 {[%clk 00:10:53]} {[%emt 00:00:16]}
21. Rc2 {[%clk 00:06:17]} {[%emt 00:00:42]} Nb4 {[%clk 00:10:38]} {[%emt
00:00:25]} 22. Rxc8 {[%clk 00:06:03]} {[%emt 00:00:25]} Rxc8 {[%clk 00:10:44]}
{[%emt 00:00:04]} 23. Nc3 {[%clk 00:05:58]} {[%emt 00:00:14]} Ng4 {[%clk
00:10:31]} {[%emt 00:00:22]} 24. d4 {[%clk 00:05:58]} {[%emt 00:00:11]} Nf6
{[%clk 00:10:18]} {[%emt 00:00:23]} 25. Ne5 {[%clk 00:06:00]} {[%emt 00:00:09]}
Ne4 {[%clk 00:10:03]} {[%emt 00:00:24]} 26. Rc1 {[%clk 00:05:20]} {[%emt
00:00:50]} f6 {[%clk 00:07:53]} {[%emt 00:02:20]} 27. Ng6 {[%clk 00:02:34]}
{[%emt 00:02:56]} Qe8 {[%clk 00:07:25]} {[%emt 00:00:38]} 28. a3 {[%clk
00:02:43]} {[%emt 00:00:01]} Nxc3 {[%clk 00:06:55]} {[%emt 00:00:40]} 29. Bxc3
{[%clk 00:02:38]} {[%emt 00:00:14]} Nc6 {[%clk 00:06:19]} {[%emt 00:00:47]} 30.
Nh4 {[%clk 00:02:31]} {[%emt 00:00:17]} Ne7 {[%clk 00:05:34]} {[%emt 00:00:55]}
31. Qd2 {[%clk 00:02:14]} {[%emt 00:00:27]} Qd8 {[%clk 00:05:23]} {[%emt
00:00:21]} 32. Bh3 {[%clk 00:02:07]} {[%emt 00:00:17]} f5 {[%clk 00:05:20]}
{[%emt 00:00:13]} 33. Nf3 {[%clk 00:02:11]} {[%emt 00:00:06]} Ng6 {[%clk
00:05:07]} {[%emt 00:00:23]} 34. Bf1 {[%clk 00:02:10]} {[%emt 00:00:10]} Qd7
{[%clk 00:05:06]} {[%emt 00:00:11]} 35. Bd3 {[%clk 00:02:12]} {[%emt 00:00:08]}
Rc7 {[%clk 00:04:46]} {[%emt 00:00:31]} 36. Bb4 {[%clk 00:01:52]} {[%emt
00:00:29]} Rxc1+ {[%clk 00:04:47]} {[%emt 00:00:09]} 37. Qxc1 {[%clk 00:02:01]}
{[%emt 00:00:01]} a5 {[%clk 00:04:47]} {[%emt 00:00:10]} 38. Bc5 {[%clk
00:02:02]} {[%emt 00:00:08]} Qc7 {[%clk 00:04:33]} {[%emt 00:00:25]} 39. Bxb5
{[%clk 00:02:07]} {[%emt 00:00:05]} Qd8 {[%clk 00:03:27]} {[%emt 00:01:16]} 40.
Kg2 {[%clk 00:01:54]} {[%emt 00:00:23]} Kh7 {[%clk 00:03:06]} {[%emt 00:00:31]}
41. Bxb6 {[%clk 00:01:46]} {[%emt 00:00:18]} Qxb6 {[%clk 00:03:15]} {[%emt
00:00:01]} 42. Qc5 {[%clk 00:01:55]} {[%emt 00:00:01]} Qd8 {[%clk 00:02:57]}
{[%emt 00:00:28]} 43. h4 {[%clk 00:01:35]} {[%emt 00:00:29]} Nf8 {[%clk
00:02:36]} {[%emt 00:00:31]} 44. Ne5 {[%clk 00:01:35]} {[%emt 00:00:11]} Qa8
{[%clk 00:02:01]} {[%emt 00:00:45]} 45. Qc7 {[%clk 00:01:12]} {[%emt 00:00:32]}
Qc8 {[%clk 00:01:49]} {[%emt 00:00:22]} 46. Qxc8 {[%clk 00:01:12]} {[%emt
00:00:10]} Bxc8 {[%clk 00:01:58]} 47. b4 {[%clk 00:01:21]} axb4 {[%clk
00:02:05]} {[%emt 00:00:04]} 48. axb4 {[%clk 00:01:28]} {[%emt 00:00:03]} Bb7
{[%clk 00:02:06]} {[%emt 00:00:08]} 49. Be8 {[%clk 00:01:33]} {[%emt 00:00:05]}
Bc8 {[%clk 00:02:02]} {[%emt 00:00:15]} 50. b5 {[%clk 00:01:40]} {[%emt
00:00:04]} Kg8 {[%clk 00:01:50]} {[%emt 00:00:21]} 51. b6 {[%clk 00:01:43]}
{[%emt 00:00:06]} Nh7 {[%clk 00:01:54]} {[%emt 00:00:06]} 52. Bd7 {[%clk
00:01:41]} {[%emt 00:00:13]} Bxd7 {[%clk 00:01:51]} {[%emt 00:00:14]} 53. Nxd7
{[%clk 00:01:49]} Nf6 {[%clk 00:01:56]} {[%emt 00:00:05]} 54. Nxf6+ {[%clk
00:01:57]} {[%emt 00:00:03]} 1-0

[Event "Snabb-SM för veteraner, 65+ 2019"]
[Site "Schackcentrum, Vegagatan 20, Gothenburg, Sweden"]
[Date "2019.10.05"]
[Round "3.6"]
[White "Olsson, Tomas"]
[Black "Nyberg, Bo"]
[Result "1/2-1/2"]
[TimeControl "15 minutes + 10 seconds per move from move one"]
[WhiteFideId "1702696"]
[BlackFideId "1710583"]
[WhiteElo "1973"]
[BlackElo "1806"]

1. e4 {[%clk 00:15:17]} {[%emt 00:00:02]} e6 {[%clk 00:15:19]} {[%emt
00:00:02]} 2. d4 {[%clk 00:15:24]} {[%emt 00:00:03]} d5 {[%clk 00:15:27]}
{[%emt 00:00:01]} 3. Nc3 {[%clk 00:15:32]} {[%emt 00:00:02]} Nf6 {[%clk
00:15:35]} {[%emt 00:00:02]} 4. Bg5 {[%clk 00:15:28]} {[%emt 00:00:13]} Bb4
{[%clk 00:15:42]} {[%emt 00:00:03]} 5. exd5 {[%clk 00:14:48]} {[%emt 00:00:50]}
Qxd5 {[%clk 00:15:18]} {[%emt 00:00:34]} 6. Nf3 {[%clk 00:14:50]} {[%emt
00:00:08]} Ne4 {[%clk 00:15:03]} {[%emt 00:00:25]} 7. Bd2 {[%clk 00:14:06]}
{[%emt 00:00:54]} Bxc3 {[%clk 00:13:03]} {[%emt 00:02:10]} 8. bxc3 {[%clk
00:13:44]} {[%emt 00:00:31]} Nxd2 {[%clk 00:12:57]} {[%emt 00:00:16]} 9. Qxd2
{[%clk 00:13:52]} {[%emt 00:00:03]} O-O {[%clk 00:12:08]} {[%emt 00:00:59]} 10.
Bd3 {[%clk 00:13:49]} {[%emt 00:00:12]} c5 {[%clk 00:09:41]} {[%emt 00:02:38]}
11. Qe3 {[%clk 00:12:26]} {[%emt 00:01:32]} cxd4 {[%clk 00:08:29]} {[%emt
00:01:23]} 12. cxd4 {[%clk 00:12:25]} {[%emt 00:00:11]} Nc6 {[%clk 00:08:11]}
{[%emt 00:00:28]} 13. O-O {[%clk 00:12:11]} {[%emt 00:00:23]} Qd6 {[%clk
00:07:00]} {[%emt 00:01:21]} 14. Rfe1 {[%clk 00:11:58]} {[%emt 00:00:23]} Nb4
{[%clk 00:06:51]} {[%emt 00:00:20]} 15. Rad1 {[%clk 00:10:48]} {[%emt
00:01:20]} Nxd3 {[%clk 00:06:54]} {[%emt 00:00:08]} 16. Rxd3 {[%clk 00:10:54]}
{[%emt 00:00:03]} Bd7 {[%clk 00:06:53]} {[%emt 00:00:11]} 17. Ne5 {[%clk
00:10:18]} {[%emt 00:00:46]} Bc6 {[%clk 00:06:42]} {[%emt 00:00:21]} 18. Nxc6
{[%clk 00:09:44]} {[%emt 00:00:44]} Qxc6 {[%clk 00:06:48]} {[%emt 00:00:05]} 19.
Qe5 {[%clk 00:08:51]} {[%emt 00:01:02]} Qxc2 {[%clk 00:06:06]} {[%emt
00:00:53]} 20. Rg3 {[%clk 00:08:28]} {[%emt 00:00:32]} g6 {[%clk 00:06:13]}
{[%emt 00:00:04]} 21. Qe3 {[%clk 00:08:02]} {[%emt 00:00:35]} Qb2 {[%clk
00:05:00]} {[%emt 00:01:23]} 22. Rh3 {[%clk 00:07:37]} {[%emt 00:00:35]} Rfd8
{[%clk 00:04:11]} {[%emt 00:01:00]} 23. Qh6 {[%clk 00:06:42]} {[%emt 00:01:04]}
Qxd4 {[%clk 00:03:47]} {[%emt 00:00:35]} 24. Qxh7+ {[%clk 00:06:31]} {[%emt
00:00:20]} Kf8 {[%clk 00:03:56]} 25. Rf3 {[%clk 00:06:08]} {[%emt 00:00:34]}
Qg7 {[%clk 00:03:18]} {[%emt 00:00:49]} 26. Qh4 {[%clk 00:06:12]} {[%emt
00:00:06]} Rd4 {[%clk 00:03:01]} {[%emt 00:00:27]} 27. Qg5 {[%clk 00:06:10]}
{[%emt 00:00:11]} Rd5 {[%clk 00:02:26]} {[%emt 00:00:46]} 28. Qe3 {[%clk
00:06:04]} {[%emt 00:00:17]} Kg8 {[%clk 00:01:48]} {[%emt 00:00:47]} 29. h3
{[%clk 00:06:12]} {[%emt 00:00:02]} b6 {[%clk 00:01:51]} {[%emt 00:00:08]} 30.
Qe4 {[%clk 00:05:26]} {[%emt 00:00:54]} Rad8 {[%clk 00:01:53]} {[%emt
00:00:08]} 31. Rfe3 {[%clk 00:05:30]} {[%emt 00:00:06]} Rd1 {[%clk 00:01:46]}
{[%emt 00:00:18]} 32. Kh2 {[%clk 00:04:50]} {[%emt 00:00:49]} Rxe1 {[%clk
00:01:51]} {[%emt 00:00:06]} 33. Rxe1 {[%clk 00:04:58]} {[%emt 00:00:01]} Rd5
{[%clk 00:01:53]} {[%emt 00:00:08]} 34. Qa4 {[%clk 00:04:40]} {[%emt 00:00:28]}
1/2-1/2